[Event "Titled Tuesday Blitz May 31 Early 2022"]
[White "Jaferian, Koosha"]
[Black "Zhigalko, Sergei"]
[WhiteFideId "12507440"]
[BlackFideId "13502956"]
[WhiteElo "2030"]
[BlackElo "2662"]
[Result "0-1"]
[Round "05"]
[TimeControl "180+1"]
[Date "2022.05.31"]
[WhiteClock "0:00:03"]
[BlackClock "0:00:07"]

1. Nf3 {[%clk 0:03:00]}  d5 {[%clk 0:02:59]} 2. b3 {[%clk 0:03:01]}  c6 {[%clk 0:02:56]} 3. Bb2 {[%clk 0:02:59]}  Bg4 {[%clk 0:02:56]} 4. g3 {[%clk 0:03:00]}  Nd7 {[%clk 0:02:54]} 5. Bg2 {[%clk 0:03:00]}  e6 {[%clk 0:02:54]} 6. d4 {[%clk 0:03:00]}  Ngf6 {[%clk 0:02:54]} 7. O-O {[%clk 0:03:00]}  Be7 {[%clk 0:02:53]} 8. e3 {[%clk 0:03:01]}  O-O {[%clk 0:02:53]} 9. Nbd2 {[%clk 0:03:01]}  a5 {[%clk 0:02:52]} 10. c4 {[%clk 0:02:59]}  a4 {[%clk 0:02:47]} 11. h3 {[%clk 0:02:56]}  Bf5 {[%clk 0:02:40]} 12. Qe2 {[%clk 0:02:53]}  Qa5 {[%clk 0:02:38]} 13. Rfc1 {[%clk 0:02:52]}  h6 {[%clk 0:02:31]} 14. Bc3 {[%clk 0:02:51]}  Qa6 {[%clk 0:02:31]} 15. Bf1 {[%clk 0:02:28]}  Ba3 {[%clk 0:02:25]} 16. Re1 {[%clk 0:02:22]}  Bd6 {[%clk 0:02:04]} 17. Qd1 {[%clk 0:02:14]}  Qa7 {[%clk 0:02:02]} 18. c5 {[%clk 0:02:11]}  Bc7 {[%clk 0:02:02]} 19. b4 {[%clk 0:02:11]}  b5 {[%clk 0:01:52]} 20. cxb6 {[%clk 0:02:01]}  Qxb6 {[%clk 0:01:38]} 21. a3 {[%clk 0:01:56]}  Rfe8 {[%clk 0:01:37]} 22. Rc1 {[%clk 0:01:49]}  Bd6 {[%clk 0:01:36]} 23. Bb2 {[%clk 0:01:48]}  Ne4 {[%clk 0:01:19]} 24. Nxe4 {[%clk 0:01:46]}  Bxe4 {[%clk 0:01:17]} 25. Nd2 {[%clk 0:01:38]}  Bg6 {[%clk 0:01:15]} 26. Nb1 {[%clk 0:01:34]}  e5 {[%clk 0:01:10]} 27. dxe5 {[%clk 0:01:25]}  Nxe5 {[%clk 0:01:10]} 28. Bd4 {[%clk 0:01:14]}  Qb7 {[%clk 0:01:01]} 29. Nc3 {[%clk 0:00:54]}  Nc4 {[%clk 0:00:33]} 30. Bxc4 {[%clk 0:00:46]}  dxc4 {[%clk 0:00:32]} 31. Bxg7 {[%clk 0:00:37]}  Bxg3 {[%clk 0:00:14]} 32. fxg3 {[%clk 0:00:38]}  Kxg7 {[%clk 0:00:14]} 33. Qd4+ {[%clk 0:00:38]}  Kh7 {[%clk 0:00:14]} 34. Qxc4 {[%clk 0:00:37]}  Rad8 {[%clk 0:00:14]} 35. Qf4 {[%clk 0:00:28]}  Rd3 {[%clk 0:00:07]} 36. Nxa4 {[%clk 0:00:22]}  Rxa3 {[%clk 0:00:06]} 37. Nc5 {[%clk 0:00:23]}  Qe7 {[%clk 0:00:04]} 38. Kf2 {[%clk 0:00:17]}  Rd8 {[%clk 0:00:03]} 39. Re2 {[%clk 0:00:17]}  Rd6 {[%clk 0:00:03]} 40. Kg1 {[%clk 0:00:06]}  Rf6 {[%clk 0:00:03]} 41. Qd4 {[%clk 0:00:06]}  Rd6 {[%clk 0:00:03]} 42. Qf4 {[%clk 0:00:07]}  Rf6 {[%clk 0:00:03]} 43. Qd4 {[%clk 0:00:07]}  Ra8 {[%clk 0:00:04]} 44. Rf1 {[%clk 0:00:07]}  Rd6 {[%clk 0:00:03]} 45. Qf4 {[%clk 0:00:07]}  Re8 {[%clk 0:00:03]} 46. Nb7 {[%clk 0:00:04]}  Re6 {[%clk 0:00:02]} 47. Nc5 {[%clk 0:00:04]}  Re5 {[%clk 0:00:02]} 48. Ref2 {[%clk 0:00:02]}  Rxe3 {[%clk 0:00:02]} 49. Kg2 {[%clk 0:00:02]}  Re5 {[%clk 0:00:02]} 50. Qf6 {[%clk 0:00:02]}  Qxf6 {[%clk 0:00:02]} 51. Rxf6 {[%clk 0:00:03]}  Rc8 {[%clk 0:00:02]} 52. Rd6 {[%clk 0:00:04]}  Kg7 {[%clk 0:00:02]} 53. Rfd1 {[%clk 0:00:04]}  Re2+ {[%clk 0:00:02]} 54. Kf3 {[%clk 0:00:03]}  Rb2 {[%clk 0:00:02]} 55. R1d4 {[%clk 0:00:03]}  Ra8 {[%clk 0:00:02]} 56. g4 {[%clk 0:00:02]}  Ra3+ {[%clk 0:00:02]} 57. Kf4 {[%clk 0:00:02]}  Rf2+ {[%clk 0:00:03]} 58. Ke5 {[%clk 0:00:03]}  Re2+ {[%clk 0:00:03]} 59. Kf4 {[%clk 0:00:02]}  Rf2+ {[%clk 0:00:03]} 60. Ke5 {[%clk 0:00:03]}  Re3+ {[%clk 0:00:04]} 61. Ne4 {[%clk 0:00:03]}  Rfe2 {[%clk 0:00:05]} 62. Rxc6 {[%clk 0:00:03]}  Bxe4 {[%clk 0:00:05]} 63. Rc5 {[%clk 0:00:03]}  Bg2+ {[%clk 0:00:05]} 64. Kd6 {[%clk 0:00:04]}  Bxh3 {[%clk 0:00:05]} 65. b5 {[%clk 0:00:05]}  Re6+ {[%clk 0:00:05]} 66. Kc7 {[%clk 0:00:05]}  Rb2 {[%clk 0:00:05]} 67. Rdc4 {[%clk 0:00:02]}  Bf1 {[%clk 0:00:05]} 68. Rc1 {[%clk 0:00:02]}  Rxb5 {[%clk 0:00:06]} 69. Rxb5 {[%clk 0:00:01]}  Bxb5 {[%clk 0:00:06]} 70. Rb1 {[%clk 0:00:02]}  Bd3 {[%clk 0:00:07]} 71. Rg1 {[%clk 0:00:02]}  Bg6 {[%clk 0:00:07]} 72. g5 {[%clk 0:00:03]}  h5 {[%clk 0:00:07]} 0-1


[Site "https://www.chess.com"]

[Event "Titled Tuesday Blitz May 31 Early 2022"]
[White "Jumabayev, Rinat"]
[Black "Hasangatin, Ramil"]
[WhiteFideId "13702661"]
[BlackFideId "4122160"]
[WhiteElo "2561"]
[BlackElo "2399"]
[Result "1-0"]
[Round "05"]
[TimeControl "180+1"]
[Date "2022.05.31"]
[WhiteClock "0:00:06"]
[BlackClock "0:00:03"]

1. d4 {[%clk 0:03:00]}  Nf6 {[%clk 0:02:59]} 2. c4 {[%clk 0:03:01]}  d6 {[%clk 0:02:58]} 3. Nf3 {[%clk 0:03:01]}  g6 {[%clk 0:02:57]} 4. Nc3 {[%clk 0:03:01]}  Bf5 {[%clk 0:02:57]} 5. Qb3 {[%clk 0:02:59]}  Qc8 {[%clk 0:02:56]} 6. g3 {[%clk 0:02:49]}  c6 {[%clk 0:02:54]} 7. Bg2 {[%clk 0:02:47]}  Bg7 {[%clk 0:02:54]} 8. O-O {[%clk 0:02:45]}  Ne4 {[%clk 0:02:54]} 9. Re1 {[%clk 0:02:33]}  Nxc3 {[%clk 0:02:54]} 10. bxc3 {[%clk 0:02:33]}  Be4 {[%clk 0:02:51]} 11. Bf1 {[%clk 0:02:32]}  O-O {[%clk 0:02:43]} 12. Ng5 {[%clk 0:02:31]}  Bf5 {[%clk 0:02:43]} 13. e4 {[%clk 0:02:32]}  Bg4 {[%clk 0:02:39]} 14. h3 {[%clk 0:01:55]}  Bd7 {[%clk 0:02:38]} 15. Kh2 {[%clk 0:01:55]}  c5 {[%clk 0:02:35]} 16. d5 {[%clk 0:01:49]}  Qc7 {[%clk 0:02:03]} 17. f4 {[%clk 0:01:38]}  Bc8 {[%clk 0:02:02]} 18. a4 {[%clk 0:01:31]}  Nd7 {[%clk 0:02:02]} 19. Bg2 {[%clk 0:01:30]}  Rb8 {[%clk 0:02:01]} 20. Ra2 {[%clk 0:01:24]}  a6 {[%clk 0:01:59]} 21. Bf1 {[%clk 0:01:05]}  Qb6 {[%clk 0:01:46]} 22. Rb2 {[%clk 0:01:00]}  Qxb3 {[%clk 0:01:31]} 23. Rxb3 {[%clk 0:01:01]}  Re8 {[%clk 0:01:26]} 24. Be3 {[%clk 0:00:46]}  Ra8 {[%clk 0:01:21]} 25. Reb1 {[%clk 0:00:45]}  Nf6 {[%clk 0:01:19]} 26. e5 {[%clk 0:00:36]}  dxe5 {[%clk 0:00:49]} 27. fxe5 {[%clk 0:00:37]}  Nd7 {[%clk 0:00:49]} 28. e6 {[%clk 0:00:37]}  Ne5 {[%clk 0:00:49]} 29. exf7+ {[%clk 0:00:21]}  Nxf7 {[%clk 0:00:49]} 30. Nxf7 {[%clk 0:00:21]}  Kxf7 {[%clk 0:00:48]} 31. Bxc5 {[%clk 0:00:21]}  Bf5 {[%clk 0:00:24]} 32. Re1 {[%clk 0:00:20]}  Rac8 {[%clk 0:00:20]} 33. Bd4 {[%clk 0:00:20]}  Rc7 {[%clk 0:00:12]} 34. a5 {[%clk 0:00:18]}  Bf6 {[%clk 0:00:09]} 35. Rb6 {[%clk 0:00:14]}  Rec8 {[%clk 0:00:08]} 36. g4 {[%clk 0:00:14]}  Bc2 {[%clk 0:00:06]} 37. Rb4 {[%clk 0:00:13]}  g5 {[%clk 0:00:03]} 38. Kg3 {[%clk 0:00:13]}  Bg6 {[%clk 0:00:01]} 39. Re3 {[%clk 0:00:12]}  h5 {[%clk 0:00:01]} 40. Be2 {[%clk 0:00:12]}  h4+ {[%clk 0:00:01]} 41. Kf2 {[%clk 0:00:13]}  Rd7 {[%clk 0:00:01]} 42. Ke1 {[%clk 0:00:13]}  Rdc7 {[%clk 0:00:02]} 43. Kd2 {[%clk 0:00:13]}  Rd7 {[%clk 0:00:02]} 44. Bf1 {[%clk 0:00:10]}  Rdc7 {[%clk 0:00:03]} 45. Kc1 {[%clk 0:00:10]}  Rd7 {[%clk 0:00:03]} 46. Kb2 {[%clk 0:00:11]}  Rdc7 {[%clk 0:00:04]} 47. Kb3 {[%clk 0:00:11]}  Rd7 {[%clk 0:00:04]} 48. Rb6 {[%clk 0:00:12]}  Rdc7 {[%clk 0:00:04]} 49. Kb4 {[%clk 0:00:12]}  Rd7 {[%clk 0:00:05]} 50. Bg2 {[%clk 0:00:11]}  Bc2 {[%clk 0:00:05]} 51. c5 {[%clk 0:00:11]}  Bg6 {[%clk 0:00:05]} 52. Rbe6 {[%clk 0:00:08]}  Rdc7 {[%clk 0:00:04]} 53. d6 {[%clk 0:00:07]}  Rd7 {[%clk 0:00:05]} 54. Bd5 {[%clk 0:00:05]}  Kg7 {[%clk 0:00:04]} 55. Rxe7+ {[%clk 0:00:05]}  Rxe7 {[%clk 0:00:03]} 56. Rxe7+ {[%clk 0:00:06]}  Kf8 {[%clk 0:00:03]} 57. Bxf6 {[%clk 0:00:06]} 1-0


[Site "https://www.chess.com"]

[Event "Titled Tuesday Blitz May 31 Early 2022"]
[White "Kalashian, David"]
[Black "Ider, Borya"]
[WhiteFideId "13302418"]
[BlackFideId "4901134"]
[WhiteElo "2490"]
[BlackElo "2512"]
[Result "0-1"]
[Round "05"]
[TimeControl "180+1"]
[Date "2022.06.01"]
[WhiteClock "0:00:09"]
[BlackClock "0:00:05"]

1. d4 {[%clk 0:02:40]}  e6 {[%clk 0:03:00]} 2. c4 {[%clk 0:02:40]}  d5 {[%clk 0:02:59]} 3. Nf3 {[%clk 0:02:40]}  Nf6 {[%clk 0:02:59]} 4. Nc3 {[%clk 0:02:41]}  Nbd7 {[%clk 0:02:59]} 5. c5 {[%clk 0:02:36]}  b6 {[%clk 0:02:47]} 6. Bf4 {[%clk 0:02:28]}  Nh5 {[%clk 0:02:32]} 7. Bg5 {[%clk 0:02:24]}  f6 {[%clk 0:02:08]} 8. c6 {[%clk 0:02:19]}  fxg5 {[%clk 0:02:00]} 9. cxd7+ {[%clk 0:02:18]}  Bxd7 {[%clk 0:02:00]} 10. e3 {[%clk 0:02:05]}  Bd6 {[%clk 0:01:55]} 11. Bd3 {[%clk 0:01:57]}  g4 {[%clk 0:01:46]} 12. Ne5 {[%clk 0:01:42]}  Bxe5 {[%clk 0:01:44]} 13. dxe5 {[%clk 0:01:29]}  Qg5 {[%clk 0:01:44]} 14. h3 {[%clk 0:01:22]}  gxh3 {[%clk 0:01:39]} 15. Rxh3 {[%clk 0:01:18]}  g6 {[%clk 0:01:39]} 16. g4 {[%clk 0:01:12]}  d4 {[%clk 0:01:33]} 17. Ne4 {[%clk 0:01:05]}  Qxe5 {[%clk 0:01:33]} 18. gxh5 {[%clk 0:01:04]}  O-O-O {[%clk 0:01:31]} 19. exd4 {[%clk 0:01:01]}  Qg7 {[%clk 0:01:17]} 20. h6 {[%clk 0:00:59]}  Qe7 {[%clk 0:01:16]} 21. Qe2 {[%clk 0:00:53]}  Kb8 {[%clk 0:01:12]} 22. O-O-O {[%clk 0:00:52]}  Bc6 {[%clk 0:01:12]} 23. Bc2 {[%clk 0:00:50]}  Rhf8 {[%clk 0:01:10]} 24. Kb1 {[%clk 0:00:47]}  Rf4 {[%clk 0:01:09]} 25. a3 {[%clk 0:00:44]}  Qf8 {[%clk 0:00:59]} 26. Rc3 {[%clk 0:00:41]}  Bd5 {[%clk 0:00:55]} 27. f3 {[%clk 0:00:39]}  Qxh6 {[%clk 0:00:54]} 28. Rc1 {[%clk 0:00:39]}  Qg7 {[%clk 0:00:47]} 29. Qe3 {[%clk 0:00:27]}  Rdf8 {[%clk 0:00:43]} 30. Qd2 {[%clk 0:00:22]}  Rxf3 {[%clk 0:00:41]} 31. Rxf3 {[%clk 0:00:21]}  Rxf3 {[%clk 0:00:42]} 32. Qb4 {[%clk 0:00:21]}  Rf4 {[%clk 0:00:37]} 33. Nc3 {[%clk 0:00:12]}  Rxd4 {[%clk 0:00:25]} 34. Qb5 {[%clk 0:00:12]}  c6 {[%clk 0:00:23]} 35. Qa6 {[%clk 0:00:11]}  Qb7 {[%clk 0:00:21]} 36. Qe2 {[%clk 0:00:10]}  Qd7 {[%clk 0:00:18]} 37. Qe5+ {[%clk 0:00:09]}  Kb7 {[%clk 0:00:17]} 38. Nxd5 {[%clk 0:00:04]}  Rxd5 {[%clk 0:00:16]} 39. Qe3 {[%clk 0:00:03]}  e5 {[%clk 0:00:15]} 40. Be4 {[%clk 0:00:04]}  Rd6 {[%clk 0:00:14]} 41. Ka1 {[%clk 0:00:04]}  Qe6 {[%clk 0:00:12]} 42. Qg5 {[%clk 0:00:05]}  h5 {[%clk 0:00:12]} 43. Qe3 {[%clk 0:00:04]}  Qf6 {[%clk 0:00:11]} 44. Qg3 {[%clk 0:00:04]}  g5 {[%clk 0:00:11]} 45. Qg2 {[%clk 0:00:04]}  h4 {[%clk 0:00:11]} 46. Qh1 {[%clk 0:00:04]}  g4 {[%clk 0:00:11]} 47. Qe1 {[%clk 0:00:04]}  g3 {[%clk 0:00:11]} 48. Qh1 {[%clk 0:00:05]}  Kc7 {[%clk 0:00:09]} 49. Rf1 {[%clk 0:00:04]}  Qe7 {[%clk 0:00:07]} 50. Qf3 {[%clk 0:00:04]}  c5 {[%clk 0:00:05]} 51. Qh5 {[%clk 0:00:05]}  Rd7 {[%clk 0:00:05]} 52. Rf5 {[%clk 0:00:05]}  Qe6 {[%clk 0:00:06]} 53. Rf1 {[%clk 0:00:05]}  h3 {[%clk 0:00:05]} 54. Qe2 {[%clk 0:00:05]}  g2 {[%clk 0:00:05]} 55. Rc1 {[%clk 0:00:06]}  Qh6 {[%clk 0:00:05]} 56. Qa6 {[%clk 0:00:06]}  Qxc1+ {[%clk 0:00:04]} 57. Ka2 {[%clk 0:00:06]}  Kd6 {[%clk 0:00:05]} 58. Qc8 {[%clk 0:00:06]}  Qc4+ {[%clk 0:00:05]} 59. Kb1 {[%clk 0:00:07]}  Qxe4+ {[%clk 0:00:05]} 60. Ka2 {[%clk 0:00:08]}  Qc4+ {[%clk 0:00:05]} 61. Ka1 {[%clk 0:00:09]}  g1=Q# {[%clk 0:00:05]} 0-1


[Site "https://www.chess.com"]

[Event "Titled Tuesday Blitz May 31 Early 2022"]
[White "Keymer, Vincent"]
[Black "Vasquez Schroeder, Rodrigo"]
[WhiteFideId "12940690"]
[BlackFideId "3400042"]
[WhiteElo "2548"]
[BlackElo "2567"]
[Result "1-0"]
[Round "05"]
[TimeControl "180+1"]
[Date "2022.05.31"]
[WhiteClock "0:00:21"]
[BlackClock "0:01:12"]

1. Nf3 {[%clk 0:03:00]}  c5 {[%clk 0:02:59]} 2. c4 {[%clk 0:03:00]}  Nf6 {[%clk 0:02:59]} 3. Nc3 {[%clk 0:03:01]}  e6 {[%clk 0:03:00]} 4. g3 {[%clk 0:02:59]}  b6 {[%clk 0:03:00]} 5. Bg2 {[%clk 0:02:59]}  Bb7 {[%clk 0:03:00]} 6. O-O {[%clk 0:03:00]}  a6 {[%clk 0:03:01]} 7. d4 {[%clk 0:03:00]}  cxd4 {[%clk 0:03:01]} 8. Qxd4 {[%clk 0:02:59]}  d6 {[%clk 0:03:00]} 9. Bg5 {[%clk 0:02:56]}  Nbd7 {[%clk 0:03:01]} 10. Qd2 {[%clk 0:02:49]}  Qc7 {[%clk 0:02:45]} 11. Rfd1 {[%clk 0:02:43]}  Rd8 {[%clk 0:02:33]} 12. b3 {[%clk 0:02:05]}  Be7 {[%clk 0:02:33]} 13. Rac1 {[%clk 0:02:02]}  O-O {[%clk 0:02:32]} 14. Bf4 {[%clk 0:01:38]}  Nc5 {[%clk 0:02:32]} 15. Be3 {[%clk 0:01:32]}  Rc8 {[%clk 0:02:29]} 16. Nd4 {[%clk 0:01:23]}  Bxg2 {[%clk 0:02:28]} 17. Kxg2 {[%clk 0:01:24]}  Qb7+ {[%clk 0:02:28]} 18. f3 {[%clk 0:01:24]}  Rfd8 {[%clk 0:02:28]} 19. Bf2 {[%clk 0:01:15]}  d5 {[%clk 0:02:20]} 20. cxd5 {[%clk 0:01:14]}  Nxd5 {[%clk 0:02:21]} 21. Nxd5 {[%clk 0:01:14]}  Rxd5 {[%clk 0:02:21]} 22. b4 {[%clk 0:01:09]}  Na4 {[%clk 0:01:56]} 23. Rxc8+ {[%clk 0:01:08]}  Qxc8 {[%clk 0:01:55]} 24. Rc1 {[%clk 0:00:54]}  Qd7 {[%clk 0:01:54]} 25. Qc2 {[%clk 0:00:49]}  h6 {[%clk 0:01:41]} 26. Nc6 {[%clk 0:00:43]}  b5 {[%clk 0:01:41]} 27. e4 {[%clk 0:00:27]}  Rd6 {[%clk 0:01:38]} 28. Ne5 {[%clk 0:00:25]}  Qb7 {[%clk 0:01:31]} 29. Qc8+ {[%clk 0:00:22]}  Qxc8 {[%clk 0:01:31]} 30. Rxc8+ {[%clk 0:00:23]}  Rd8 {[%clk 0:01:31]} 31. Nc6 {[%clk 0:00:23]}  Rxc8 {[%clk 0:01:24]} 32. Nxe7+ {[%clk 0:00:23]}  Kf8 {[%clk 0:01:24]} 33. Nxc8 {[%clk 0:00:24]}  Nc3 {[%clk 0:01:24]} 34. a3 {[%clk 0:00:24]}  Nb1 {[%clk 0:01:23]} 35. Na7 {[%clk 0:00:20]}  Nxa3 {[%clk 0:01:23]} 36. Nc6 {[%clk 0:00:21]}  Nc2 {[%clk 0:01:23]} 37. Bc5+ {[%clk 0:00:20]}  Ke8 {[%clk 0:01:22]} 38. Kf2 {[%clk 0:00:21]}  Na1 {[%clk 0:01:18]} 39. Na5 {[%clk 0:00:20]}  Nc2 {[%clk 0:01:17]} 40. Ke2 {[%clk 0:00:20]}  Kd7 {[%clk 0:01:16]} 41. Kd2 {[%clk 0:00:20]}  Na3 {[%clk 0:01:13]} 42. Kc3 {[%clk 0:00:21]}  Nb1+ {[%clk 0:01:11]} 43. Kc2 {[%clk 0:00:21]}  Na3+ {[%clk 0:01:12]} 44. Kb2 {[%clk 0:00:21]} 1-0


[Site "https://www.chess.com"]

[Event "Titled Tuesday Blitz May 31 Early 2022"]
[White "Maevsky, Nikolay"]
[Black "Bas Mas, Jose Joaquin"]
[WhiteFideId "4198220"]
[BlackFideId "22219064"]
[WhiteElo "2149"]
[BlackElo "2233"]
[Result "1/2-1/2"]
[Round "05"]
[TimeControl "180+1"]
[Date "2022.06.01"]
[WhiteClock "0:00:06"]
[BlackClock "0:00:19"]

1. d4 {[%clk 0:03:00]}  f5 {[%clk 0:02:57]} 2. Bg5 {[%clk 0:03:00]}  Nf6 {[%clk 0:02:56]} 3. Bxf6 {[%clk 0:03:00]}  exf6 {[%clk 0:02:57]} 4. c4 {[%clk 0:03:00]}  d5 {[%clk 0:02:57]} 5. cxd5 {[%clk 0:02:49]}  Qxd5 {[%clk 0:02:56]} 6. Nc3 {[%clk 0:02:49]}  Bb4 {[%clk 0:02:55]} 7. e3 {[%clk 0:02:48]}  c6 {[%clk 0:02:45]} 8. Ne2 {[%clk 0:02:46]}  g5 {[%clk 0:02:38]} 9. a3 {[%clk 0:02:46]}  Bxc3+ {[%clk 0:02:37]} 10. Nxc3 {[%clk 0:02:45]}  Qf7 {[%clk 0:02:33]} 11. h4 {[%clk 0:02:33]}  Be6 {[%clk 0:02:29]} 12. Be2 {[%clk 0:02:31]}  g4 {[%clk 0:02:27]} 13. Bd3 {[%clk 0:02:19]}  Nd7 {[%clk 0:02:23]} 14. Rc1 {[%clk 0:02:18]}  Nb6 {[%clk 0:02:22]} 15. b4 {[%clk 0:02:14]}  g3 {[%clk 0:02:20]} 16. fxg3 {[%clk 0:02:13]}  Rg8 {[%clk 0:02:19]} 17. Ne2 {[%clk 0:02:13]}  Nd5 {[%clk 0:02:17]} 18. Qd2 {[%clk 0:02:10]}  Qh5 {[%clk 0:02:07]} 19. O-O {[%clk 0:02:09]}  Kf7 {[%clk 0:02:04]} 20. Rf3 {[%clk 0:02:08]}  f4 {[%clk 0:01:50]} 21. Nxf4 {[%clk 0:02:00]}  Nxf4 {[%clk 0:01:48]} 22. exf4 {[%clk 0:01:58]}  Bd5 {[%clk 0:01:49]} 23. Re3 {[%clk 0:01:54]}  Rg7 {[%clk 0:01:42]} 24. Rce1 {[%clk 0:01:53]}  Kg8 {[%clk 0:01:41]} 25. Qe2 {[%clk 0:01:41]}  Qxe2 {[%clk 0:01:39]} 26. R1xe2 {[%clk 0:01:41]}  a5 {[%clk 0:01:40]} 27. b5 {[%clk 0:01:40]}  Rf7 {[%clk 0:01:34]} 28. Re8+ {[%clk 0:01:20]}  Rf8 {[%clk 0:01:34]} 29. Rxa8 {[%clk 0:01:16]}  Rxa8 {[%clk 0:01:34]} 30. bxc6 {[%clk 0:01:14]}  bxc6 {[%clk 0:01:33]} 31. Re7 {[%clk 0:01:05]}  Rb8 {[%clk 0:01:33]} 32. Bxh7+ {[%clk 0:00:53]}  Kf8 {[%clk 0:01:30]} 33. Re2 {[%clk 0:00:53]}  Rb3 {[%clk 0:01:27]} 34. Kh2 {[%clk 0:00:52]}  Rxa3 {[%clk 0:01:26]} 35. g4 {[%clk 0:00:50]}  Ra4 {[%clk 0:01:21]} 36. g5 {[%clk 0:00:48]}  Rxd4 {[%clk 0:01:18]} 37. Kg3 {[%clk 0:00:48]}  fxg5 {[%clk 0:01:12]} 38. hxg5 {[%clk 0:00:47]}  a4 {[%clk 0:01:09]} 39. Bb1 {[%clk 0:00:38]}  Bc4 {[%clk 0:01:01]} 40. Rf2 {[%clk 0:00:35]}  a3 {[%clk 0:00:55]} 41. Ba2 {[%clk 0:00:34]}  Bxa2 {[%clk 0:00:43]} 42. Rxa2 {[%clk 0:00:34]}  Rd3+ {[%clk 0:00:44]} 43. Kg4 {[%clk 0:00:34]}  c5 {[%clk 0:00:42]} 44. f5 {[%clk 0:00:33]}  c4 {[%clk 0:00:40]} 45. f6 {[%clk 0:00:31]}  Kf7 {[%clk 0:00:39]} 46. Kf5 {[%clk 0:00:31]}  Rd5+ {[%clk 0:00:39]} 47. Kf4 {[%clk 0:00:31]}  Ra5 {[%clk 0:00:38]} 48. Ke4 {[%clk 0:00:31]}  Kg6 {[%clk 0:00:36]} 49. Kd4 {[%clk 0:00:21]}  Ra4 {[%clk 0:00:33]} 50. Kc3 {[%clk 0:00:19]}  Kxg5 {[%clk 0:00:33]} 51. f7 {[%clk 0:00:18]}  Ra8 {[%clk 0:00:29]} 52. Rf2 {[%clk 0:00:17]}  Rf8 {[%clk 0:00:27]} 53. Kxc4 {[%clk 0:00:15]}  a2 {[%clk 0:00:25]} 54. Rxa2 {[%clk 0:00:14]}  Rxf7 {[%clk 0:00:26]} 55. Kd3 {[%clk 0:00:13]}  Kg4 {[%clk 0:00:24]} 56. Ke4 {[%clk 0:00:11]}  Re7+ {[%clk 0:00:23]} 57. Kd4 {[%clk 0:00:11]}  Kg3 {[%clk 0:00:24]} 58. Kd5 {[%clk 0:00:10]}  Re1 {[%clk 0:00:20]} 59. Kd4 {[%clk 0:00:06]}  Rg1 {[%clk 0:00:19]} 60. Ke4 {[%clk 0:00:05]}  Rxg2 {[%clk 0:00:19]} 61. Rxg2+ {[%clk 0:00:06]}  Kxg2 {[%clk 0:00:19]} 1/2-1/2


[Site "https://www.chess.com"]

[Event "Titled Tuesday Blitz May 31 Early 2022"]
[White "Makarian, Rudik"]
[Black "Gong, Patrick"]
[WhiteFideId "44105681"]
[BlackFideId "3222500"]
[WhiteElo "2419"]
[BlackElo "2103"]
[Result "1-0"]
[Round "05"]
[TimeControl "180+1"]
[Date "2022.05.31"]
[WhiteClock "0:02:03"]
[BlackClock "0:01:18"]

1. d3 {[%clk 0:02:57]}  g6 {[%clk 0:02:53]} 2. g3 {[%clk 0:02:56]}  Bg7 {[%clk 0:02:53]} 3. Bg2 {[%clk 0:02:56]}  c5 {[%clk 0:02:53]} 4. f4 {[%clk 0:02:56]}  Nc6 {[%clk 0:02:52]} 5. Nf3 {[%clk 0:02:57]}  e6 {[%clk 0:02:50]} 6. O-O {[%clk 0:02:57]}  Nge7 {[%clk 0:02:50]} 7. e4 {[%clk 0:02:57]}  d5 {[%clk 0:02:48]} 8. c3 {[%clk 0:02:56]}  dxe4 {[%clk 0:02:41]} 9. dxe4 {[%clk 0:02:56]}  Qxd1 {[%clk 0:02:41]} 10. Rxd1 {[%clk 0:02:57]}  b6 {[%clk 0:02:42]} 11. Na3 {[%clk 0:02:55]}  Ba6 {[%clk 0:02:39]} 12. Bf1 {[%clk 0:02:54]}  Bxf1 {[%clk 0:02:37]} 13. Kxf1 {[%clk 0:02:55]}  Rd8 {[%clk 0:02:35]} 14. Be3 {[%clk 0:02:54]}  f5 {[%clk 0:02:32]} 15. e5 {[%clk 0:02:53]}  Nd5 {[%clk 0:02:30]} 16. Ke2 {[%clk 0:02:53]}  a6 {[%clk 0:02:26]} 17. Nc4 {[%clk 0:02:52]}  Ke7 {[%clk 0:02:25]} 18. Nxb6 {[%clk 0:02:47]}  Nxe3 {[%clk 0:01:50]} 19. Kxe3 {[%clk 0:02:46]}  h6 {[%clk 0:01:50]} 20. b3 {[%clk 0:02:39]}  g5 {[%clk 0:01:49]} 21. Na4 {[%clk 0:02:33]}  c4 {[%clk 0:01:45]} 22. Nc5 {[%clk 0:02:30]}  g4 {[%clk 0:01:39]} 23. Nd4 {[%clk 0:02:26]}  Nxd4 {[%clk 0:01:34]} 24. Rxd4 {[%clk 0:02:25]}  Rxd4 {[%clk 0:01:30]} 25. cxd4 {[%clk 0:02:26]}  c3 {[%clk 0:01:25]} 26. Rc1 {[%clk 0:02:19]}  h5 {[%clk 0:01:24]} 27. Rxc3 {[%clk 0:02:15]}  h4 {[%clk 0:01:25]} 28. Nxa6 {[%clk 0:02:08]}  Ra8 {[%clk 0:01:23]} 29. Rc7+ {[%clk 0:02:07]}  Kf8 {[%clk 0:01:23]} 30. Rc6 {[%clk 0:02:06]}  Kf7 {[%clk 0:01:22]} 31. b4 {[%clk 0:02:06]}  h3 {[%clk 0:01:19]} 32. b5 {[%clk 0:02:06]}  Bf8 {[%clk 0:01:19]} 33. a4 {[%clk 0:02:04]}  Bb4 {[%clk 0:01:18]} 34. Rc7+ {[%clk 0:02:03]} 1-0


[Site "https://www.chess.com"]